[Event "*** Titled Tuesday Blitz"]
[Site "Chess.com"]
[Date "2020.03.03"]
[Round "3"]
[White "freshfoodcompany"]
[Black "Azeryahu"]
[Result "0-1"]
[WhiteElo "2149"]
[BlackElo "2844"]
[TimeControl "180+1"]
[EndTime "9:29:39 PST"]
[Termination "Azeryahu won on time"]

1. d4 {[%clk 0:03:00.9]} 1... d5 {[%clk 0:02:58.4]} 2. c4 {[%clk 0:03:00.9]}
2... e6 {[%clk 0:02:58.7]} 3. Nc3 {[%clk 0:03:00.7]} 3... Be7 {[%clk 0:02:55.8]}
4. cxd5 {[%clk 0:03:00.8]} 4... exd5 {[%clk 0:02:56.7]} 5. Bf4 {[%clk 0:03:01]}
5... Nf6 {[%clk 0:02:56.6]} 6. e3 {[%clk 0:03:00.2]} 6... Bf5 {[%clk 0:02:56.4]}
7. Nge2 {[%clk 0:02:57.8]} 7... c6 {[%clk 0:02:49.3]} 8. Ng3 {[%clk 0:02:56.7]}
8... Bg6 {[%clk 0:02:49.9]} 9. h4 {[%clk 0:02:54.6]} 9... h5 {[%clk 0:02:49.9]}
10. Bd3 {[%clk 0:02:52.9]} 10... Bxd3 {[%clk 0:02:49.7]} 11. Qxd3 {[%clk
0:02:52.6]} 11... g6 {[%clk 0:02:50.6]} 12. Nge2 {[%clk 0:02:43.3]} 12... Nbd7
{[%clk 0:02:48.7]} 13. O-O {[%clk 0:02:31.6]} 13... Nf8 {[%clk 0:02:48.7]} 14.
Bg5 {[%clk 0:02:26.9]} 14... Ne6 {[%clk 0:02:48.2]} 15. Bxf6 {[%clk 0:02:23.1]}
15... Bxf6 {[%clk 0:02:49.1]} 16. g3 {[%clk 0:02:21.8]} 16... Qe7 {[%clk
0:02:30.3]} 17. Kg2 {[%clk 0:02:17.3]} 17... O-O-O {[%clk 0:02:29.3]} 18. f4
{[%clk 0:02:02.2]} 18... Ng7 {[%clk 0:02:27.4]} 19. Rae1 {[%clk 0:01:53.5]}
19... Nf5 {[%clk 0:02:23.7]} 20. Ng1 {[%clk 0:01:47.6]} 20... Rhe8 {[%clk
0:02:05.3]} 21. Nd1 {[%clk 0:01:43]} 21... Bxh4 {[%clk 0:01:36.3]} 22. gxh4
{[%clk 0:01:37]} 22... Qxh4 {[%clk 0:01:37.2]} 23. e4 {[%clk 0:01:27.1]} 23...
dxe4 {[%clk 0:01:28.4]} 24. Qh3 {[%clk 0:01:22.2]} 24... Rxd4 {[%clk 0:01:24.4]}
25. Qxh4 {[%clk 0:01:19.5]} 25... Nxh4+ {[%clk 0:01:25.3]} 26. Kh2 {[%clk
0:01:09.3]} 26... Nf5 {[%clk 0:01:13.6]} 27. Re2 {[%clk 0:01:03.3]} 27... b5
{[%clk 0:01:06.3]} 28. Rfe1 {[%clk 0:00:55.6]} 28... e3 {[%clk 0:01:01.5]} 29.
Nxe3 {[%clk 0:00:51.1]} 29... Nxe3 {[%clk 0:01:02.1]} 30. Rxe3 {[%clk
0:00:50.9]} 30... Rxe3 {[%clk 0:01:02.7]} 31. Rxe3 {[%clk 0:00:50.8]} 31... Rxf4
{[%clk 0:01:03.3]} 32. Kg3 {[%clk 0:00:43.6]} 32... Ra4 {[%clk 0:00:58.4]} 33.
a3 {[%clk 0:00:39]} 33... Kd7 {[%clk 0:00:58.6]} 34. Nf3 {[%clk 0:00:35.7]}
34... f6 {[%clk 0:00:58.9]} 35. Nd2 {[%clk 0:00:29.7]} 35... f5 {[%clk
0:00:56.1]} 36. Kf2 {[%clk 0:00:22.6]} 36... g5 {[%clk 0:00:46.9]} 37. Re5
{[%clk 0:00:20.6]} 37... Rf4+ {[%clk 0:00:44.8]} 38. Kg3 {[%clk 0:00:17.9]}
38... h4+ {[%clk 0:00:44.5]} 39. Kg2 {[%clk 0:00:17.4]} 39... g4 {[%clk
0:00:44.2]} 40. Re3 {[%clk 0:00:14.3]} 40... Rd4 {[%clk 0:00:43]} 41. Nb3 {[%clk
0:00:13]} 41... Rd5 {[%clk 0:00:43.3]} 42. Re2 {[%clk 0:00:12.1]} 42... f4
{[%clk 0:00:42.8]} 43. Rd2 {[%clk 0:00:11.7]} 43... Kd6 {[%clk 0:00:40.6]} 44.
Rxd5+ {[%clk 0:00:09]} 44... Kxd5 {[%clk 0:00:41.5]} 45. Nc1 {[%clk 0:00:07.2]}
45... Ke4 {[%clk 0:00:40.2]} 46. Nb3 {[%clk 0:00:03.3]} 46... Ke3 {[%clk
0:00:40.5]} 0-1

[Event "*** Titled Tuesday Blitz"]
[Site "Chess.com"]
[Date "2020.03.03"]
[Round "3"]
[White "hongnhung1234"]
[Black "Vegan4future"]
[Result "0-1"]
[WhiteElo "2262"]
[BlackElo "2549"]
[TimeControl "180+1"]
[EndTime "9:29:40 PST"]
[Termination "Vegan4future won on time"]

1. e4 {[%clk 0:03:00.9]} 1... e5 {[%clk 0:02:59.4]} 2. Nf3 {[%clk 0:03:00.7]}
2... d6 {[%clk 0:02:59.7]} 3. d4 {[%clk 0:03:00.6]} 3... exd4 {[%clk 0:03:00.6]}
4. Nxd4 {[%clk 0:03:01.4]} 4... Nf6 {[%clk 0:03:01]} 5. Nc3 {[%clk 0:03:01.8]}
5... Be7 {[%clk 0:03:01.9]} 6. Bc4 {[%clk 0:03:00.6]} 6... O-O {[%clk
0:03:02.7]} 7. O-O {[%clk 0:03:00.8]} 7... Nxe4 {[%clk 0:03:03.2]} 8. Nxe4
{[%clk 0:02:55.5]} 8... d5 {[%clk 0:03:03.5]} 9. Bd3 {[%clk 0:02:45.2]} 9...
dxe4 {[%clk 0:03:04.4]} 10. Bxe4 {[%clk 0:02:46.1]} 10... Re8 {[%clk 0:03:05.3]}
11. c3 {[%clk 0:02:39.3]} 11... c5 {[%clk 0:03:03.1]} 12. Nf5 {[%clk 0:02:20.8]}
12... Bf8 {[%clk 0:02:51.6]} 13. Qf3 {[%clk 0:02:11.2]} 13... Qb6 {[%clk
0:02:43.5]} 14. Bf4 {[%clk 0:01:59.3]} 14... Nd7 {[%clk 0:02:41.1]} 15. Ng3
{[%clk 0:01:25.3]} 15... Nf6 {[%clk 0:02:31.5]} 16. Bc2 {[%clk 0:01:22.2]} 16...
c4 {[%clk 0:02:17.2]} 17. h3 {[%clk 0:00:57.8]} 17... Qxb2 {[%clk 0:02:13.7]}
18. Ba4 {[%clk 0:00:57.6]} 18... Bd7 {[%clk 0:01:57.3]} 19. Bxd7 {[%clk
0:00:55.6]} 19... Nxd7 {[%clk 0:01:58.1]} 20. Rfb1 {[%clk 0:00:48.9]} 20... Qc2
{[%clk 0:01:50.1]} 21. Rxb7 {[%clk 0:00:47.3]} 21... Nc5 {[%clk 0:01:48.1]} 22.
Rc7 {[%clk 0:00:44.5]} 22... Ne6 {[%clk 0:01:47.6]} 23. Rb7 {[%clk 0:00:35.1]}
23... Qg6 {[%clk 0:01:31.6]} 24. Rd1 {[%clk 0:00:29.6]} 24... Rad8 {[%clk
0:01:19.7]} 25. Rxd8 {[%clk 0:00:19.8]} 25... Rxd8 {[%clk 0:01:20.6]} 26. Rxa7
{[%clk 0:00:19]} 26... Nxf4 {[%clk 0:01:19.3]} 27. Qxf4 {[%clk 0:00:19.5]} 27...
Bd6 {[%clk 0:01:18.4]} 28. Qh4 {[%clk 0:00:13.9]} 28... Re8 {[%clk 0:01:14.2]}
29. Nf1 {[%clk 0:00:13.6]} 29... h6 {[%clk 0:01:12.9]} 30. Rd7 {[%clk
0:00:13.7]} 30... Bc5 {[%clk 0:01:06.2]} 31. Qxc4 {[%clk 0:00:12.9]} 31... Bxf2+
{[%clk 0:01:04.5]} 32. Kxf2 {[%clk 0:00:12.6]} 32... Qf5+ {[%clk 0:01:04.6]} 33.
Kg1 {[%clk 0:00:10.4]} 33... Qxd7 {[%clk 0:01:05.5]} 34. a4 {[%clk 0:00:09.8]}
34... Qa7+ {[%clk 0:01:03]} 35. Kh2 {[%clk 0:00:09]} 35... Ra8 {[%clk
0:01:03.9]} 36. Ng3 {[%clk 0:00:07.9]} 36... Qb8 {[%clk 0:01:03.5]} 37. Qe4
{[%clk 0:00:07.1]} 37... h5 {[%clk 0:01:02]} 38. Qf5 {[%clk 0:00:05.9]} 38... g6
{[%clk 0:01:01.7]} 39. Qg5 {[%clk 0:00:05.6]} 39... Rxa4 {[%clk 0:01:01.3]} 40.
Kh1 {[%clk 0:00:04.4]} 40... h4 {[%clk 0:00:57.4]} 41. Nf1 {[%clk 0:00:02.8]}
41... Ra1 {[%clk 0:00:57.5]} 42. Qf4 {[%clk 0:00:02.2]} 42... Qxf4 {[%clk
0:00:55.3]} 0-1

[Event "*** Titled Tuesday Blitz"]
[Site "Chess.com"]
[Date "2020.03.03"]
[Round "3"]
[White "Blitzstream"]
[Black "Orest_Vovk"]
[Result "0-1"]
[WhiteElo "2759"]
[BlackElo "2521"]
[TimeControl "180+1"]
[EndTime "9:29:44 PST"]
[Termination "Orest_Vovk won by resignation"]

1. d4 {[%clk 0:03:00.9]} 1... Nc6 {[%clk 0:02:57.6]} 2. Nf3 {[%clk 0:02:59.3]}
2... d6 {[%clk 0:02:49.6]} 3. e4 {[%clk 0:02:56.5]} 3... Bg4 {[%clk 0:02:48.2]}
4. Be2 {[%clk 0:02:55.2]} 4... e6 {[%clk 0:02:48.2]} 5. c4 {[%clk 0:02:51.6]}
5... Be7 {[%clk 0:02:47.4]} 6. Be3 {[%clk 0:02:51.2]} 6... Bxf3 {[%clk
0:02:45.9]} 7. Bxf3 {[%clk 0:02:50.6]} 7... Bg5 {[%clk 0:02:46.2]} 8. Nc3 {[%clk
0:02:47]} 8... Bxe3 {[%clk 0:02:45.5]} 9. fxe3 {[%clk 0:02:47.9]} 9... Qg5
{[%clk 0:02:44.7]} 10. Qd2 {[%clk 0:02:43.9]} 10... Nf6 {[%clk 0:02:39.3]} 11.
O-O-O {[%clk 0:02:43.5]} 11... O-O-O {[%clk 0:02:17.1]} 12. Kb1 {[%clk
0:02:43.7]} 12... h5 {[%clk 0:02:06.2]} 13. Ka1 {[%clk 0:02:43.5]} 13... Ng4
{[%clk 0:02:01.5]} 14. Rde1 {[%clk 0:02:34.6]} 14... e5 {[%clk 0:01:58.9]} 15.
d5 {[%clk 0:02:33.1]} 15... Ne7 {[%clk 0:01:31.4]} 16. h3 {[%clk 0:02:32.4]}
16... Nf6 {[%clk 0:01:30.8]} 17. Rc1 {[%clk 0:02:32.8]} 17... Kd7 {[%clk
0:01:14.4]} 18. Bd1 {[%clk 0:02:30.7]} 18... c6 {[%clk 0:00:53.4]} 19. Ba4
{[%clk 0:02:30]} 19... Ke8 {[%clk 0:00:52.3]} 20. Rhf1 {[%clk 0:02:19.4]} 20...
Kf8 {[%clk 0:00:47.7]} 21. Rf3 {[%clk 0:02:16.8]} 21... c5 {[%clk 0:00:39.4]}
22. Rcf1 {[%clk 0:02:14.7]} 22... Rh6 {[%clk 0:00:36.1]} 23. R1f2 {[%clk
0:01:59.7]} 23... h4 {[%clk 0:00:35.6]} 24. Ne2 {[%clk 0:01:55.6]} 24... b6
{[%clk 0:00:31.2]} 25. Bc6 {[%clk 0:01:27.1]} 25... Nxe4 {[%clk 0:00:25.7]} 26.
Rxf7+ {[%clk 0:01:26.6]} 26... Kg8 {[%clk 0:00:25.7]} 27. Qe1 {[%clk 0:00:49.4]}
27... Nxf2 {[%clk 0:00:25.2]} 28. Qxf2 {[%clk 0:00:49.9]} 28... Rf6 {[%clk
0:00:25.1]} 29. Rxf6 {[%clk 0:00:50]} 29... Qxf6 {[%clk 0:00:25]} 30. Qe1 {[%clk
0:00:50.3]} 30... Rf8 {[%clk 0:00:21.8]} 31. a4 {[%clk 0:00:48]} 31... Qf1
{[%clk 0:00:18.7]} 32. Qxf1 {[%clk 0:00:47.9]} 32... Rxf1+ {[%clk 0:00:19.5]}
33. Ka2 {[%clk 0:00:48.8]} 33... Rf2 {[%clk 0:00:16.5]} 34. Nc3 {[%clk 0:00:49]}
34... Rxg2 {[%clk 0:00:16.3]} 35. Nb5 {[%clk 0:00:49.3]} 35... Rg3 {[%clk
0:00:12.4]} 36. Bd7 {[%clk 0:00:49.2]} 36... Rxe3 {[%clk 0:00:10.2]} 37. Nxa7
{[%clk 0:00:49.3]} 37... Rf3 {[%clk 0:00:08.9]} 38. Nc8 {[%clk 0:00:48.6]} 38...
Nxc8 {[%clk 0:00:08.1]} 39. Bxc8 {[%clk 0:00:48.6]} 39... e4 {[%clk 0:00:08.6]}
40. Bg4 {[%clk 0:00:49.2]} 40... Rf4 {[%clk 0:00:08.7]} 41. b4 {[%clk
0:00:45.4]} 41... cxb4 {[%clk 0:00:06.4]} 42. Kb3 {[%clk 0:00:46]} 42... e3
{[%clk 0:00:06.1]} 43. Kc2 {[%clk 0:00:45.5]} 43... Rf2+ {[%clk 0:00:05.9]} 44.
Kd3 {[%clk 0:00:45.4]} 44... b3 {[%clk 0:00:06.1]} 45. c5 {[%clk 0:00:45.9]}
45... bxc5 {[%clk 0:00:05.5]} 46. Kc4 {[%clk 0:00:45.5]} 46... b2 {[%clk
0:00:05.6]} 0-1

[Event "*** Titled Tuesday Blitz"]
[Site "Chess.com"]
[Date "2020.03.03"]
[Round "3"]
[White "almaguerjm"]
[Black "doons21"]
[Result "0-1"]
[WhiteElo "2337"]
[BlackElo "2592"]
[TimeControl "180+1"]
[EndTime "9:29:44 PST"]
[Termination "doons21 won by resignation"]

1. d4 {[%clk 0:03:00.9]} 1... Nf6 {[%clk 0:01:57.3]} 2. Nc3 {[%clk 0:02:59.8]}
2... g6 {[%clk 0:01:58]} 3. Bf4 {[%clk 0:02:58.3]} 3... d5 {[%clk 0:01:56.8]} 4.
Qd2 {[%clk 0:02:45.9]} 4... Bf5 {[%clk 0:01:49]} 5. f3 {[%clk 0:02:44.7]} 5...
Nc6 {[%clk 0:01:47.5]} 6. g4 {[%clk 0:02:37.6]} 6... Be6 {[%clk 0:01:47.1]} 7.
Nb5 {[%clk 0:02:36.1]} 7... Rc8 {[%clk 0:01:46.2]} 8. c3 {[%clk 0:02:25.2]} 8...
h5 {[%clk 0:01:45.9]} 9. g5 {[%clk 0:02:24.4]} 9... Nd7 {[%clk 0:01:42.1]} 10.
h4 {[%clk 0:02:22.6]} 10... Nb6 {[%clk 0:01:41.9]} 11. e3 {[%clk 0:02:22]} 11...
Bg7 {[%clk 0:01:38.7]} 12. Qh2 {[%clk 0:02:19.2]} 12... Na8 {[%clk 0:01:37.1]}
13. Bd3 {[%clk 0:02:15.3]} 13... a6 {[%clk 0:01:35.1]} 14. Na3 {[%clk
0:02:15.5]} 14... O-O {[%clk 0:01:30.8]} 15. Ne2 {[%clk 0:02:15.5]} 15... b5
{[%clk 0:01:29.2]} 16. O-O {[%clk 0:02:12.8]} 16... Nb6 {[%clk 0:01:29.2]} 17.
b3 {[%clk 0:02:10.1]} 17... Qd7 {[%clk 0:01:29.4]} 18. Nxb5 {[%clk 0:01:57.7]}
18... axb5 {[%clk 0:01:25.5]} 19. Bxb5 {[%clk 0:01:58.6]} 19... Na8 {[%clk
0:01:20.6]} 20. a4 {[%clk 0:01:47.2]} 20... Qe8 {[%clk 0:01:10]} 21. e4 {[%clk
0:01:41]} 21... Bd7 {[%clk 0:01:05.8]} 22. exd5 {[%clk 0:01:36.2]} 22... Na5
{[%clk 0:01:05.9]} 23. Ba6 {[%clk 0:01:03.7]} 23... Rb8 {[%clk 0:00:53.1]} 24.
b4 {[%clk 0:01:02.9]} 24... Nb7 {[%clk 0:00:47.9]} 25. a5 {[%clk 0:00:52.2]}
25... Nd6 {[%clk 0:00:47.3]} 26. Nc1 {[%clk 0:00:51.3]} 26... Bb5 {[%clk
0:00:43]} 27. Bxb5 {[%clk 0:00:51.7]} 27... Qxb5 {[%clk 0:00:43.9]} 28. Re1
{[%clk 0:00:50.4]} 28... Rfe8 {[%clk 0:00:42.9]} 29. Qa2 {[%clk 0:00:48.4]}
29... Nf5 {[%clk 0:00:39.7]} 30. Be5 {[%clk 0:00:41.8]} 30... Nxh4 {[%clk
0:00:38.9]} 31. Bxg7 {[%clk 0:00:41.5]} 31... Nxf3+ {[%clk 0:00:38.4]} 32. Kf2
{[%clk 0:00:39.9]} 32... Nxe1 {[%clk 0:00:38.7]} 33. Be5 {[%clk 0:00:38.9]}
33... Nd3+ {[%clk 0:00:36.5]} 34. Nxd3 {[%clk 0:00:39]} 34... Qxd3 {[%clk
0:00:37]} 35. Rc1 {[%clk 0:00:27.8]} 35... Qf5+ {[%clk 0:00:35.7]} 36. Ke2
{[%clk 0:00:25]} 36... Qxg5 {[%clk 0:00:35.4]} 37. Qc2 {[%clk 0:00:22.6]} 37...
Qg2+ {[%clk 0:00:31.3]} 38. Kd3 {[%clk 0:00:23.1]} 38... Qxd5 {[%clk 0:00:31.8]}
39. Rg1 {[%clk 0:00:20.3]} 39... Qf3+ {[%clk 0:00:28.8]} 40. Kc4 {[%clk
0:00:20]} 40... Qc6+ {[%clk 0:00:22.7]} 41. Kb3 {[%clk 0:00:19.5]} 41... Qe6+
{[%clk 0:00:21.4]} 42. Ka3 {[%clk 0:00:18.6]} 42... Rb5 {[%clk 0:00:21.6]} 43.
Rg5 {[%clk 0:00:17.5]} 43... c6 {[%clk 0:00:19.8]} 44. Qg2 {[%clk 0:00:17.3]}
44... Nc7 {[%clk 0:00:19.4]} 45. Kb2 {[%clk 0:00:17.6]} 45... Nd5 {[%clk
0:00:19]} 46. Kc2 {[%clk 0:00:17.2]} 46... Ne3+ {[%clk 0:00:19.2]} 0-1

[Event "*** Titled Tuesday Blitz"]
[Site "Chess.com"]
[Date "2020.03.03"]
[Round "3"]
[White "Man-Chuk"]
[Black "Leosumant"]
[Result "1-0"]
[WhiteElo "2760"]
[BlackElo "2491"]
[TimeControl "180+1"]
[EndTime "9:29:46 PST"]
[Termination "Man-Chuk won by resignation"]

1. d4 {[%clk 0:02:59.1]} 1... Nf6 {[%clk 0:02:59.6]} 2. c4 {[%clk 0:02:56.5]}
2... e5 {[%clk 0:02:59.5]} 3. dxe5 {[%clk 0:02:54.8]} 3... Ng4 {[%clk
0:02:59.6]} 4. Bf4 {[%clk 0:02:54.4]} 4... Nc6 {[%clk 0:02:59.3]} 5. Nc3 {[%clk
0:02:50.6]} 5... Ngxe5 {[%clk 0:02:58.4]} 6. e3 {[%clk 0:02:50.2]} 6... Bb4
{[%clk 0:02:57.1]} 7. Rc1 {[%clk 0:02:46.3]} 7... O-O {[%clk 0:02:56.3]} 8. a3
{[%clk 0:02:43.4]} 8... Bxc3+ {[%clk 0:02:56.1]} 9. Rxc3 {[%clk 0:02:41.5]} 9...
a5 {[%clk 0:02:57]} 10. b3 {[%clk 0:02:34.5]} 10... b6 {[%clk 0:02:55.1]} 11.
Be2 {[%clk 0:02:33]} 11... Bb7 {[%clk 0:02:54.6]} 12. Nf3 {[%clk 0:02:32.8]}
12... d6 {[%clk 0:02:53.2]} 13. O-O {[%clk 0:02:31.1]} 13... Qe7 {[%clk
0:02:51.1]} 14. Nd4 {[%clk 0:02:30.3]} 14... Rfd8 {[%clk 0:02:32.6]} 15. Bg3
{[%clk 0:02:24.4]} 15... d5 {[%clk 0:02:19.4]} 16. cxd5 {[%clk 0:02:19.6]} 16...
Rxd5 {[%clk 0:02:18.9]} 17. Nxc6 {[%clk 0:02:12.5]} 17... Bxc6 {[%clk
0:02:16.8]} 18. Qc2 {[%clk 0:02:12.1]} 18... Rc5 {[%clk 0:02:05.2]} 19. Rc1
{[%clk 0:02:08.1]} 19... Nd7 {[%clk 0:01:47]} 20. Bd3 {[%clk 0:01:57.1]} 20...
Rxc3 {[%clk 0:01:42.6]} 21. Bxh7+ {[%clk 0:01:35]} 21... Kh8 {[%clk 0:01:41.3]}
22. Qxc3 {[%clk 0:01:35.9]} 22... Nc5 {[%clk 0:01:22.9]} 23. Bb1 {[%clk
0:01:29.5]} 23... Be4 {[%clk 0:00:59.8]} 24. Bxe4 {[%clk 0:01:23.1]} 24... Qxe4
{[%clk 0:01:00.7]} 25. Bxc7 {[%clk 0:01:16.6]} 25... Nd3 {[%clk 0:00:42.4]} 26.
Rd1 {[%clk 0:01:01.7]} 26... Rc8 {[%clk 0:00:41.9]} 27. Qxd3 {[%clk 0:00:54.3]}
27... Qxd3 {[%clk 0:00:40.3]} 28. Rxd3 {[%clk 0:00:55.2]} 28... Rxc7 {[%clk
0:00:41.2]} 29. g4 {[%clk 0:00:51.9]} 29... Rc6 {[%clk 0:00:40.5]} 30. a4 {[%clk
0:00:51.5]} 30... Kh7 {[%clk 0:00:39.9]} 31. Kg2 {[%clk 0:00:51.2]} 31... g5
{[%clk 0:00:39.8]} 32. Kg3 {[%clk 0:00:49.7]} 32... Kg6 {[%clk 0:00:40]} 33. f4
{[%clk 0:00:44.5]} 33... f5 {[%clk 0:00:40]} 34. gxf5+ {[%clk 0:00:43.2]} 34...
Kxf5 {[%clk 0:00:39.7]} 35. Rd5+ {[%clk 0:00:43.4]} 35... Ke4 {[%clk 0:00:39.5]}
36. Re5+ {[%clk 0:00:43.8]} 36... Kd3 {[%clk 0:00:40]} 37. fxg5 {[%clk 0:00:44]}
37... Kc3 {[%clk 0:00:39]} 38. Rb5 {[%clk 0:00:42.6]} 38... Kd3 {[%clk
0:00:37.9]} 39. Kf4 {[%clk 0:00:41.8]} 39... Rc2 {[%clk 0:00:33.6]} 40. h4
{[%clk 0:00:41.7]} 40... Rf2+ {[%clk 0:00:33.4]} 41. Kg4 {[%clk 0:00:42]} 41...
Kxe3 {[%clk 0:00:33.3]} 42. g6 {[%clk 0:00:42.3]} 42... Rg2+ {[%clk 0:00:31.4]}
43. Kh5 {[%clk 0:00:42.7]} 43... Kf4 {[%clk 0:00:31.5]} 44. Rg5 {[%clk
0:00:40.1]} 1-0

[Event "*** Titled Tuesday Blitz"]
[Site "Chess.com"]
[Date "2020.03.03"]
[Round "3"]
[White "Fandorine"]
[Black "FelixJoseYnojosa"]
[Result "1-0"]
[WhiteElo "2887"]
[BlackElo "2693"]
[TimeControl "180+1"]
[EndTime "9:29:50 PST"]
[Termination "Fandorine won on time"]

1. e4 {[%clk 0:03:00.9]} 1... c5 {[%clk 0:02:58.2]} 2. Nf3 {[%clk 0:03:00.8]}
2... Nc6 {[%clk 0:02:57.5]} 3. Bb5 {[%clk 0:03:00.2]} 3... e6 {[%clk 0:02:56.8]}
4. Bxc6 {[%clk 0:02:59.5]} 4... bxc6 {[%clk 0:02:56.7]} 5. b3 {[%clk 0:03:00]}
5... Ne7 {[%clk 0:02:56.6]} 6. Bb2 {[%clk 0:02:33.5]} 6... Ng6 {[%clk
0:02:55.5]} 7. h4 {[%clk 0:02:28.9]} 7... h5 {[%clk 0:02:55.2]} 8. e5 {[%clk
0:02:27.6]} 8... f6 {[%clk 0:02:55.3]} 9. d3 {[%clk 0:02:24.3]} 9... d5 {[%clk
0:02:26.9]} 10. Nbd2 {[%clk 0:02:20.8]} 10... Kf7 {[%clk 0:02:10]} 11. g3 {[%clk
0:02:19.5]} 11... a5 {[%clk 0:01:50.5]} 12. a4 {[%clk 0:02:19]} 12... Rb8 {[%clk
0:01:49.5]} 13. Qe2 {[%clk 0:02:18.5]} 13... Be7 {[%clk 0:01:43.9]} 14. O-O
{[%clk 0:01:59.9]} 14... Qc7 {[%clk 0:01:32.9]} 15. Rfe1 {[%clk 0:01:59.2]}
15... Qd7 {[%clk 0:01:07.9]} 16. exf6 {[%clk 0:01:10.2]} 16... gxf6 {[%clk
0:01:06.4]} 17. Ng5+ {[%clk 0:01:10.8]} 17... fxg5 {[%clk 0:01:01.3]} 18. Bxh8
{[%clk 0:01:10.7]} 18... Nxh8 {[%clk 0:00:58.2]} 19. Qe5 {[%clk 0:01:10.4]}
19... Ng6 {[%clk 0:00:28.4]} 20. Qxb8 {[%clk 0:01:10.6]} 20... Bd6 {[%clk
0:00:16.5]} 21. Qa8 {[%clk 0:01:10.8]} 21... gxh4 {[%clk 0:00:16.7]} 22. Nf3
{[%clk 0:01:08.5]} 22... hxg3 {[%clk 0:00:15.3]} 23. fxg3 {[%clk 0:01:08.8]}
23... e5 {[%clk 0:00:15.1]} 24. Re2 {[%clk 0:01:00.8]} 24... Kg7 {[%clk
0:00:14.2]} 25. Rf1 {[%clk 0:00:57.2]} 25... Qg4 {[%clk 0:00:10.1]} 26. Rg2
{[%clk 0:00:52.2]} 26... e4 {[%clk 0:00:09.4]} 27. dxe4 {[%clk 0:00:45.1]} 27...
dxe4 {[%clk 0:00:10.3]} 28. Nh2 {[%clk 0:00:44.2]} 28... Qd7 {[%clk 0:00:05.7]}
29. Qxa5 {[%clk 0:00:40.4]} 29... Be5 {[%clk 0:00:04.4]} 30. Kh1 {[%clk
0:00:36.9]} 30... Bd4 {[%clk 0:00:03.5]} 31. Qe1 {[%clk 0:00:34.3]} 31... e3
{[%clk 0:00:02.9]} 32. c3 {[%clk 0:00:34.6]} 32... Be5 {[%clk 0:00:02.8]} 33.
Qxe3 {[%clk 0:00:34.7]} 33... Qd5 {[%clk 0:00:03.1]} 34. c4 {[%clk 0:00:30.4]}
34... Qd6 {[%clk 0:00:03.5]} 35. Nf3 {[%clk 0:00:28.4]} 35... Bh3 {[%clk
0:00:01.9]} 36. Ng5 {[%clk 0:00:18.6]} 36... Bxg2+ {[%clk 0:00:02]} 37. Kxg2
{[%clk 0:00:19.5]} 37... Bd4 {[%clk 0:00:01.9]} 38. Qe6 {[%clk 0:00:13.6]} 38...
Qc7 {[%clk 0:00:01.5]} 39. Rf7+ {[%clk 0:00:13.2]} 1-0

[Event "*** Titled Tuesday Blitz"]
[Site "Chess.com"]
[Date "2020.03.03"]
[Round "3"]
[White "Endgamegenius"]
[Black "davserr65"]
[Result "0-1"]
[WhiteElo "2298"]
[BlackElo "2039"]
[TimeControl "180+1"]
[EndTime "9:29:51 PST"]
[Termination "davserr65 won on time"]

1. e4 {[%clk 0:02:43.7]} 1... c5 {[%clk 0:02:59.2]} 2. Nf3 {[%clk 0:02:41.5]}
2... d6 {[%clk 0:02:59.5]} 3. d4 {[%clk 0:02:39.4]} 3... Nf6 {[%clk 0:02:59.6]}
4. Nc3 {[%clk 0:02:38.2]} 4... cxd4 {[%clk 0:02:59.8]} 5. Nxd4 {[%clk
0:02:38.2]} 5... a6 {[%clk 0:03:00.5]} 6. Bg5 {[%clk 0:02:35.8]} 6... e6 {[%clk
0:03:00.3]} 7. Qf3 {[%clk 0:02:33.9]} 7... Be7 {[%clk 0:02:59.5]} 8. O-O-O
{[%clk 0:02:32.9]} 8... Qc7 {[%clk 0:02:59.8]} 9. Qg3 {[%clk 0:02:29.2]} 9...
Nbd7 {[%clk 0:02:58.6]} 10. Be2 {[%clk 0:02:24.5]} 10... b5 {[%clk 0:02:57.7]}
11. Be3 {[%clk 0:02:23.1]} 11... Rg8 {[%clk 0:02:53.8]} 12. Bxb5 {[%clk
0:02:05.3]} 12... axb5 {[%clk 0:02:50.6]} 13. Ndxb5 {[%clk 0:02:05.2]} 13... Qc6
{[%clk 0:02:42.6]} 14. Nxd6+ {[%clk 0:01:58.7]} 14... Bxd6 {[%clk 0:02:42.6]}
15. Rxd6 {[%clk 0:01:58.4]} 15... Qc4 {[%clk 0:02:34.1]} 16. f3 {[%clk
0:01:34.2]} 16... e5 {[%clk 0:01:55.1]} 17. Rhd1 {[%clk 0:01:28.8]} 17... Ra6
{[%clk 0:01:50.1]} 18. Rxa6 {[%clk 0:01:18.3]} 18... Bxa6 {[%clk 0:01:49.7]} 19.
Bg5 {[%clk 0:01:17.8]} 19... Qe6 {[%clk 0:01:43.8]} 20. Qf2 {[%clk 0:01:07.9]}
20... Qb6 {[%clk 0:01:21.6]} 21. Qd2 {[%clk 0:01:03]} 21... Bb7 {[%clk
0:01:14.8]} 22. Be3 {[%clk 0:00:55.3]} 22... Qc6 {[%clk 0:01:11.5]} 23. a4
{[%clk 0:00:37.3]} 23... Ba6 {[%clk 0:01:06.1]} 24. Bg5 {[%clk 0:00:33.5]} 24...
Ke7 {[%clk 0:00:39.5]} 25. Nd5+ {[%clk 0:00:32.1]} 25... Ke6 {[%clk 0:00:40]}
26. Qa5 {[%clk 0:00:24]} 26... Bc8 {[%clk 0:00:36]} 27. Nc7+ {[%clk 0:00:08.7]}
27... Ke7 {[%clk 0:00:32.6]} 28. Nd5+ {[%clk 0:00:09.1]} 28... Ke6 {[%clk
0:00:31.8]} 29. Nc7+ {[%clk 0:00:08]} 29... Ke7 {[%clk 0:00:30.3]} 30. Qb4+
{[%clk 0:00:05.9]} 30... Kd8 {[%clk 0:00:27.5]} 31. Nd5 {[%clk 0:00:00.6]} 31...
Ke8 {[%clk 0:00:21.6]} 0-1